bitfinex/quotes_BTCUSD_20250718
["timestamp","ask_amount","ask_price","bid_price","bid_amount"]
[1752803478318,0.03343672,120400.0,120390.0,0.78564711]
[1752803478487,0.03343672,120400.0,120390.0,0.80204711]
[1752803478863,0.03343672,120400.0,120390.0,0.80414711]
[1752803479108,0.02218122,120400.0,120390.0,0.82296711]
[1752803479313,0.80742177,120410.0,120400.0,0.34]
[1752803479435,0.31287661,120410.0,120400.0,0.52287418]
[1752803479645,0.31287661,120410.0,120400.0,0.6086338]
[1752803481062,0.31088661,120410.0,120400.0,0.6096338]
[1752803481488,0.31088661,120410.0,120400.0,0.60132823]
[1752803481690,0.81070177,120410.0,120400.0,0.34115002]
[1752803481826,0.81170177,120410.0,120400.0,0.34915002]
[1752803482441,0.66734177,120410.0,120400.0,0.34915002]
[1752803482679,0.81170177,120410.0,120400.0,0.34915002]
[1752803482881,0.31512661,120410.0,120400.0,0.34915002]
[1752803483058,0.81170177,120410.0,120400.0,0.34915002]
[1752803483424,0.31512661,120410.0,120400.0,0.34915002]
[1752803483632,0.81170177,120410.0,120400.0,0.34915002]
[1752803484385,0.31512661,120410.0,120400.0,0.51526297]
[1752803484585,0.81170177,120410.0,120400.0,0.60102259]
[1752803484790,0.81170177,120410.0,120400.0,0.60932823]
[1752803484992,0.0123744,120410.0,120400.0,1.06596987]
[1752803485209,0.02691355,120410.0,120400.0,1.22574987]
[1752803485445,0.03521837,120410.0,120400.0,0.72917471]
[1752803485673,0.03521837,120410.0,120400.0,0.58489471]
[1752803485878,0.02691355,120410.0,120400.0,0.81493433]
[1752803486075,0.01860887,120410.0,120400.0,0.81493433]
[1752803486448,0.03521823,120410.0,120400.0,0.81493433]
[1752803486853,0.02691348,120410.0,120400.0,0.81493433]
[1752803487061,0.02691348,120410.0,120400.0,0.72917471]
[1752803487805,0.03521816,120410.0,120400.0,0.72917471]
[1752803488260,0.04352298,120410.0,120400.0,0.72917471]
[1752803488884,0.03521816,120410.0,120400.0,0.72917471]
[1752803489102,0.04352291,120410.0,120400.0,0.72917471]
[1752803489299,0.03521816,120410.0,120400.0,0.72917471]
[1752803489676,0.04352298,120410.0,120400.0,0.72917471]
[1752803489878,0.03521816,120410.0,120400.0,0.72917471]
[1752803490898,0.02691348,120410.0,120400.0,0.72917471]
[1752803491109,0.01860887,120410.0,120400.0,1.22566987]
[1752803491325,0.002,120410.0,120400.0,1.31118015]
[1752803491567,0.002,120410.0,120400.0,1.16698015]
[1752803491789,0.002,120410.0,120400.0,1.31118015]
[1752803492002,0.002,120410.0,120400.0,1.80775531]
[1752803492210,0.002,120410.0,120400.0,0.90036461]
[1752803492418,0.001,120410.0,120400.0,0.75516461]
[1752803492650,0.09960055,120430.0,120420.0,0.56289732]
[1752803492911,0.09129705,120430.0,120420.0,0.7945276]
[1752803493140,0.07469038,120430.0,120420.0,0.88343722]
[1752803493564,0.07469031,120430.0,120420.0,0.88343722]
[1752803493778,0.08299347,120430.0,120420.0,0.88343722]
[1752803493984,0.07569031,120430.0,120420.0,0.88543722]
[1752803494418,0.26667177,120430.0,120420.0,0.87709344]
[1752803494621,0.25006566,120430.0,120420.0,0.63890983]
[1752803494824,0.24973512,120430.0,120420.0,0.78302983]
[1752803495032,0.24973512,120430.0,120420.0,0.79133396]
[1752803495443,0.24143182,120430.0,120420.0,0.77472564]
[1752803495627,0.24143182,120430.0,120420.0,0.78302983]
[1752803496074,0.24343182,120430.0,120420.0,0.64721396]
[1752803496307,0.24343182,120430.0,120420.0,0.79129396]
[1752803496509,0.24343182,120430.0,120420.0,0.79959802]
[1752803496755,0.24343182,120430.0,120420.0,0.84861459]
[1752803496968,0.25173512,120430.0,120420.0,0.86522243]
[1752803497189,0.25173512,120430.0,120420.0,0.85691858]
[1752803497404,0.26003869,120430.0,120420.0,0.7211425]
[1752803497617,0.26003869,120430.0,120420.0,0.86522216]
[1752803497792,0.26003869,120430.0,120420.0,0.72114216]
[1752803498031,0.09396712,120430.0,120420.0,0.86522181]
[1752803498605,0.26003869,120430.0,120420.0,0.65551761]
[1752803498796,0.26003869,120430.0,120420.0,0.79125369]
[1752803499281,0.26003869,120430.0,120420.0,0.79955761]
[1752803499954,0.26003869,120430.0,120420.0,0.79125403]
[1752803500169,0.26003869,120430.0,120420.0,0.79955802]
[1752803500669,0.26003869,120430.0,120420.0,0.80786194]
[1752803501109,0.26003869,120430.0,120420.0,0.79125403]
[1752803501580,0.74536705,120430.0,120420.0,0.342]
[1752803501812,0.90526705,120430.0,120420.0,0.342]
[1752803502004,0.39279189,120430.0,120420.0,0.342]
[1752803502225,0.88936705,120430.0,120420.0,0.342]
[1752803502665,0.39279189,120430.0,120420.0,0.342]
[1752803502818,0.24879189,120430.0,120420.0,0.342]
[1752803503016,0.23724832,120430.0,120420.0,0.52469361]
[1752803503240,0.40399815,120430.0,120420.0,0.63749366]
[1752803503439,0.40399815,120430.0,120420.0,0.63749373]
[1752803503647,0.23792658,120430.0,120420.0,0.57791131]
[1752803504043,0.16356639,120430.0,120420.0,1.07448647]
[1752803504254,0.1801732,120430.0,120420.0,1.07448647]
[1752803504480,0.17186976,120430.0,120420.0,1.07448647]
[1752803504707,0.01960639,120430.0,120420.0,1.21844647]
[1752803504918,0.01960639,120430.0,120420.0,1.30256304]
[1752803505232,0.01960639,120430.0,120420.0,0.80598788]
[1752803505666,0.1939814,120430.0,120420.0,0.78107612]
[1752803505880,0.19398188,120430.0,120420.0,0.69695955]
[1752803506103,0.19398188,120430.0,120420.0,0.342]
[1752803506104,0.6760703,120430.0,120420.0,0.342]
[1752803506320,0.86260787,120430.0,120420.0,0.002]
[1752803506746,0.88754087,120430.0,120420.0,0.002]
[1752803506956,1.03142087,120430.0,120420.0,0.002]
[1752803508538,0.88754087,120430.0,120420.0,0.002]
[1752803508719,1.03142087,120430.0,120420.0,0.002]
[1752803509527,0.88754087,120430.0,120420.0,0.002]
[1752803509890,1.03138087,120430.0,120420.0,0.002]
[1752803511250,1.03134087,120430.0,120420.0,0.002]
[1752803512559,0.88754087,120430.0,120420.0,0.002]
[1752803512790,0.96495358,120430.0,120420.0,0.002]
[1752803513881,0.46837842,120430.0,120420.0,0.002]
[1752803514104,0.78975358,120430.0,120420.0,0.002]
[1752803514324,0.93351358,120430.0,120420.0,0.002]
[1752803514978,0.35142814,120430.0,120420.0,0.002]
[1752803515195,0.34818814,120430.0,120420.0,0.002]
[1752803515404,0.8447633,120430.0,120420.0,0.002]
[1752803515868,0.34818814,120430.0,120420.0,0.002]
[1752803516286,0.8447633,120430.0,120420.0,0.002]
[1752803516716,0.8480033,120430.0,120420.0,0.002]
[1752803517203,0.35142814,120430.0,120420.0,0.002]
[1752803517453,0.8480033,120430.0,120420.0,0.002]
[1752803517846,0.6760703,120430.0,120420.0,0.0183]
[1752803518055,0.8197503,120430.0,120420.0,0.0183]
[1752803519190,0.32317514,120430.0,120420.0,0.0183]
[1752803519435,0.17949514,120430.0,120420.0,0.0183]
[1752803519635,0.32317514,120430.0,120420.0,0.0183]
[1752803520066,0.32317514,120430.0,120420.0,0.18639536]
[1752803520292,0.32317514,120430.0,120420.0,0.03903]
[1752803520513,0.32313514,120430.0,120420.0,0.03591]
[1752803520742,0.6760703,120430.0,120420.0,0.0339]
[1752803520966,0.6793103,120430.0,120420.0,0.002]
[1752803521418,0.8229103,120430.0,120420.0,0.002]
[1752803521885,0.6793103,120430.0,120420.0,0.002]
[1752803522139,0.79632058,120430.0,120420.0,0.002]
[1752803522362,0.93992058,120430.0,120420.0,0.002]
[1752803522582,0.79632058,120430.0,120420.0,0.002]
[1752803522815,0.93992058,120430.0,120420.0,0.002]
[1752803523402,0.8228703,120430.0,120420.0,0.002]
[1752803523608,0.94048058,120430.0,120420.0,0.002]
[1752803525341,0.79692058,120430.0,120420.0,0.002]
[1752803525570,0.94044058,120430.0,120420.0,0.002]
[1752803526877,0.79692058,120430.0,120420.0,0.002]
[1752803527126,0.94044058,120430.0,120420.0,0.002]
[1752803527840,0.94040058,120430.0,120420.0,0.002]
[1752803528063,0.94036058,120430.0,120420.0,0.002]
[1752803530540,0.79692058,120430.0,120420.0,0.002]
[1752803530752,0.82185358,120430.0,120420.0,0.002]
[1752803530975,0.96525358,120430.0,120420.0,0.002]
[1752803531373,0.93315358,120430.0,120420.0,0.002]
[1752803533081,0.78975358,120430.0,120420.0,0.002]
[1752803533306,0.93311358,120430.0,120420.0,0.002]
[1752803533553,0.78975358,120430.0,120420.0,0.002]
[1752803534009,0.94827358,120430.0,120420.0,0.002]
[1752803534433,0.96487358,120430.0,120420.0,0.002]
[1752803534874,0.46829842,120430.0,120420.0,0.002]
[1752803535092,0.96487358,120430.0,120420.0,0.002]
[1752803536394,0.97941443,120430.0,120420.0,0.002]
[1752803537941,0.80429443,120430.0,120420.0,0.002]
[1752803538171,0.94753443,120430.0,120420.0,0.002]
[1752803541797,0.94429443,120430.0,120420.0,0.002]
[1752803541974,0.94429443,120430.0,120420.0,0.0346]
[1752803543200,0.94726443,120430.0,120420.0,0.002]
[1752803545340,0.94726443,120430.0,120420.0,0.0178]
[1752803545963,0.80418443,120430.0,120420.0,0.0178]
[1752803546315,0.94722443,120430.0,120420.0,0.0178]
[1752803546884,0.80418443,120430.0,120420.0,0.0178]
[1752803547092,0.94718443,120430.0,120420.0,0.0178]
[1752803547721,0.94718443,120430.0,120420.0,0.002]
[1752803549635,0.94718443,120430.0,120420.0,0.00013508]
[1752803550514,0.94718443,120430.0,120420.0,0.01563508]
[1752803550717,0.45060927,120430.0,120420.0,0.01563508]
[1752803550926,0.94718443,120430.0,120420.0,0.01563508]
[1752803552151,0.45060927,120430.0,120420.0,0.01563508]
[1752803552400,0.94718443,120430.0,120420.0,0.01563508]
[1752803553460,0.80418443,120430.0,120420.0,0.01563508]
[1752803553686,0.94702443,120430.0,120420.0,0.01563508]
[1752803554098,0.94702443,120430.0,120420.0,0.00013508]
[1752803554734,0.87057172,120430.0,120420.0,0.00013508]
[1752803554976,0.90307172,120430.0,120420.0,0.00013508]
[1752803555192,0.90307172,120430.0,120420.0,1e-08]
[1752803555411,1.38583172,120430.0,120420.0,1e-08]
[1752803555619,0.18270859,120410.0,120400.0,0.00015002]
[1752803555826,0.90971403,120410.0,120400.0,0.00015002]
[1752803556254,0.91284403,120410.0,120400.0,0.00015002]
[1752803556677,0.93778303,120410.0,120400.0,0.00015002]
[1752803558181,0.93774303,120410.0,120400.0,0.00015002]
[1752803558396,0.93874303,120410.0,120400.0,0.00415002]
[1752803558606,0.93974303,120410.0,120400.0,0.00515002]
[1752803558973,0.79702303,120410.0,120400.0,0.00515002]
[1752803559184,0.93974303,120410.0,120400.0,0.00515002]
[1752803561107,0.79702303,120410.0,120400.0,0.00515002]
[1752803561310,0.93966303,120410.0,120400.0,0.02085002]
[1752803561796,0.79702303,120410.0,120400.0,0.00515002]
[1752803561994,0.93962303,120410.0,120400.0,0.00515002]
[1752803563326,0.93962303,120410.0,120400.0,0.02045002]
[1752803563484,0.93962303,120410.0,120400.0,0.03575002]
[1752803566734,0.30969872,120410.0,120400.0,0.04107002]
[1752803566956,0.28475972,120410.0,120400.0,0.04107002]
[1752803567175,0.78133488,120410.0,120400.0,0.04107002]
[1752803567402,0.92381488,120410.0,120400.0,0.04107002]
[1752803567670,0.42723972,120410.0,120400.0,0.04107002]
[1752803567889,0.92381488,120410.0,120400.0,0.04107002]
[1752803570071,0.42723972,120410.0,120400.0,0.04107002]
[1752803570276,0.92381488,120410.0,120400.0,0.04107002]
[1752803570977,0.78133488,120410.0,120400.0,0.04107002]
[1752803571401,0.92369488,120410.0,120400.0,0.04107002]
[1752803573921,0.92568488,120410.0,120400.0,0.03575002]
[1752803574137,0.92568488,120410.0,120400.0,0.03776002]
[1752803574578,0.42910972,120410.0,120400.0,0.03776002]
[1752803574797,0.92568488,120410.0,120400.0,0.03776002]
[1752803575883,0.42910972,120410.0,120400.0,0.03776002]
[1752803576096,0.42902972,120410.0,120400.0,0.03776002]
[1752803576302,0.92560488,120410.0,120400.0,0.03776002]
[1752803577017,0.92560488,120410.0,120400.0,0.04098002]
[1752803577018,0.92556488,120410.0,120400.0,0.04098002]
[1752803579051,0.28475972,120410.0,120400.0,0.04098002]
[1752803579263,0.92349488,120410.0,120400.0,0.04098002]
[1752803581185,0.92548488,120410.0,120400.0,0.03575002]
[1752803583350,0.78332488,120410.0,120400.0,0.04098002]
[1752803583558,0.92337488,120410.0,120400.0,0.04098002]
[1752803584393,0.92536488,120410.0,120400.0,0.04098002]
[1752803584606,0.92536488,120410.0,120400.0,0.03776002]
[1752803584807,0.92536488,120410.0,120400.0,0.03575002]
[1752803585223,0.92839488,120410.0,120400.0,0.03575002]
[1752803585421,1.28293004,120410.0,120400.0,0.00515002]
[1752803585841,1.79633004,120410.0,120400.0,0.00515002]
[1752803586045,1.65433004,120410.0,120400.0,0.00515002]
[1752803586258,1.79633004,120410.0,120400.0,0.00515002]
[1752803590455,1.82127204,120410.0,120400.0,0.00515002]
[1752803590879,1.67927204,120410.0,120400.0,0.00515002]
[1752803591082,1.82119204,120410.0,120400.0,0.00515002]
[1752803592929,1.67927204,120410.0,120400.0,0.00515002]
[1752803593095,1.82111204,120410.0,120400.0,0.00515002]
[1752803593267,0.68612172,120410.0,120400.0,0.00515002]
[1752803593530,1.29313688,120410.0,120400.0,0.02025002]
[1752803593700,1.15129688,120410.0,120400.0,0.02025002]
[1752803593994,1.29309688,120410.0,120400.0,0.00515002]
[1752803594156,1.15129688,120410.0,120400.0,0.00515002]
[1752803594348,1.29309688,120410.0,120400.0,0.00515002]
[1752803594560,1.78967204,120410.0,120400.0,0.00515002]
[1752803596896,0.79652172,120410.0,120400.0,0.00515002]
[1752803597103,1.78967204,120410.0,120400.0,0.00515002]
[1752803597356,1.29301688,120410.0,120400.0,0.00515002]
[1752803597796,1.28998688,120410.0,120400.0,0.03795002]
[1752803598154,0.79341172,120410.0,120400.0,0.03795002]
[1752803598355,1.28998688,120410.0,120400.0,0.03795002]
[1752803598756,0.79341172,120410.0,120400.0,0.03795002]
[1752803599026,1.28998688,120410.0,120400.0,0.03795002]
[1752803599607,0.79341172,120410.0,120400.0,0.03795002]
[1752803599814,0.29516087,120410.0,120400.0,0.04318002]
[1752803600040,0.41189887,120410.0,120400.0,0.04318002]
[1752803600250,0.41185887,120410.0,120400.0,0.04318002]
[1752803600461,0.28475972,120410.0,120400.0,0.04318002]
[1752803600669,0.92297488,120410.0,120400.0,0.04318002]
[1752803601049,0.42639972,120410.0,120400.0,0.04318002]
[1752803601244,0.92297488,120410.0,120400.0,0.04318002]
[1752803602665,0.42639972,120410.0,120400.0,0.04318002]
[1752803602860,0.92297488,120410.0,120400.0,0.04318002]
[1752803603243,0.42639972,120410.0,120400.0,0.04318002]
[1752803603454,0.78133488,120410.0,120400.0,0.04318002]
[1752803603666,0.34080944,120410.0,120400.0,0.04318002]
[1752803604188,0.8373846,120410.0,120400.0,0.04318002]
[1752803604395,0.18470859,120410.0,120400.0,0.20929297]
[1752803604599,0.18470859,120410.0,120400.0,0.21759847]
[1752803604804,0.19301354,120410.0,120400.0,0.20929297]
[1752803605032,0.33453354,120410.0,120400.0,0.22590411]
[1752803605298,0.16012943,120410.0,120400.0,0.24251492]
[1752803605516,0.17673857,120410.0,120400.0,0.25081967]
[1752803605754,0.19301333,120410.0,120400.0,0.21759861]
[1752803605981,0.20284551,120410.0,120400.0,0.04318002]
[1752803606200,0.17640404,120410.0,120400.0,0.04318002]
[1752803606406,0.31792404,120410.0,120400.0,0.04318002]
[1752803606829,0.6729792,120410.0,120400.0,0.04318002]
[1752803607072,0.31788404,120410.0,120400.0,0.04318002]
[1752803607246,0.18470872,120410.0,120400.0,0.21759854]
[1752803607511,0.32618872,120410.0,120400.0,0.20929297]
[1752803607717,0.32618872,120410.0,120400.0,0.22590418]
[1752803607897,0.32618872,120410.0,120400.0,0.21759861]
[1752803608045,0.18470872,120410.0,120400.0,0.21759861]
[1752803608256,0.32614872,120410.0,120400.0,0.22590411]
[1752803608457,0.32614872,120410.0,120400.0,0.22590418]
[1752803608854,0.31784404,120410.0,120400.0,0.20929297]
[1752803609061,0.31784404,120410.0,120400.0,0.04318002]
[1752803609307,0.31784404,120410.0,120400.0,0.21759854]
[1752803609875,0.31784404,120410.0,120400.0,0.22590398]
[1752803610068,0.31784404,120410.0,120400.0,0.21759854]
[1752803610277,0.31784404,120410.0,120400.0,0.20929297]
[1752803610487,0.17640404,120410.0,120400.0,0.04318002]
[1752803610713,0.88076649,120410.0,120400.0,0.04318002]
[1752803611317,0.17640404,120410.0,120400.0,0.20929297]
[1752803611522,0.31780404,120410.0,120400.0,0.20929297]
[1752803611773,0.31780404,120410.0,120400.0,0.21759861]
[1752803611984,0.31780404,120410.0,120400.0,0.04318002]
[1752803614328,0.8143792,120410.0,120400.0,0.04318002]
[1752803614534,0.6729792,120410.0,120400.0,0.04318002]
[1752803614748,0.6749392,120410.0,120400.0,0.04318002]
[1752803614949,0.6749392,120410.0,120400.0,0.03996002]
[1752803614950,0.31964404,120410.0,120400.0,0.03996002]
[1752803615157,0.8162192,120410.0,120400.0,0.03996002]
[1752803615299,0.6749392,120410.0,120400.0,0.03996002]
[1752803615498,0.8162192,120410.0,120400.0,0.03996002]
[1752803616074,0.17836404,120410.0,120400.0,0.03996002]
[1752803616274,0.8162192,120410.0,120400.0,0.03996002]
[1752803616604,0.8162192,120410.0,120400.0,0.03795002]
[1752803616807,0.32280404,120410.0,120400.0,0.03795002]
[1752803617002,0.8161792,120410.0,120400.0,0.04317002]
[1752803617203,0.17836404,120410.0,120400.0,0.04317002]
[1752803617417,0.8161792,120410.0,120400.0,0.04317002]
[1752803617634,0.6749392,120410.0,120400.0,0.04317002]
[1752803617841,0.8161792,120410.0,120400.0,0.04317002]
[1752803618052,0.9426718,120410.0,120400.0,0.03795002]
[1752803618257,1.41592549,120410.0,120400.0,0.00515002]
[1752803618502,1.64572549,120410.0,120400.0,0.00515002]
[1752803618712,1.78692549,120410.0,120400.0,0.00515002]
[1752803619757,0.65257517,120410.0,120400.0,0.00515002]
[1752803619985,1.78692549,120410.0,120400.0,0.00515002]
[1752803620626,1.29031033,120410.0,120400.0,0.00515002]
[1752803620835,1.11815033,120410.0,120400.0,0.00515002]
[1752803621035,1.25931033,120410.0,120400.0,0.00515002]
[1752803621662,0.62157517,120410.0,120400.0,0.00515002]
[1752803621887,1.25931033,120410.0,120400.0,0.00515002]
[1752803623482,0.76273517,120410.0,120400.0,0.00515002]
[1752803623686,1.11815033,120410.0,120400.0,0.00515002]
[1752803624018,1.25931033,120410.0,120400.0,0.00515002]
[1752803624127,1.25927033,120410.0,120400.0,0.02145002]
[1752803624328,1.25927033,120410.0,120400.0,0.00515002]
[1752803624528,1.11815033,120410.0,120400.0,0.00515002]
[1752803624735,1.25927033,120410.0,120400.0,0.00515002]
[1752803625157,1.11815033,120410.0,120400.0,0.00515002]
[1752803625384,1.25923033,120410.0,120400.0,0.00515002]
[1752803626082,1.75580549,120410.0,120400.0,0.00515002]
[1752803626290,1.64502549,120410.0,120400.0,0.00515002]
[1752803626496,1.78610549,120410.0,120400.0,0.00515002]
[1752803626692,1.64502549,120410.0,120400.0,0.00515002]
[1752803626900,0.79295517,120410.0,120400.0,0.00515002]
[1752803627051,1.78610549,120410.0,120400.0,0.00515002]
[1752803627902,1.28953033,120410.0,120400.0,0.00515002]
[1752803628284,1.78610549,120410.0,120400.0,0.00515002]
[1752803628967,1.64502549,120410.0,120400.0,0.00515002]
[1752803629320,1.25915033,120410.0,120400.0,0.00515002]
[1752803629680,0.62157517,120410.0,120400.0,0.00515002]
[1752803629994,1.25915033,120410.0,120400.0,0.00515002]
[1752803630649,0.62157517,120410.0,120400.0,0.00515002]
[1752803630834,1.25599033,120410.0,120400.0,0.03565002]
[1752803631142,1.25915033,120410.0,120400.0,0.03565002]
[1752803631745,1.25599033,120410.0,120400.0,0.03565002]
[1752803633876,1.11797033,120410.0,120400.0,0.03565002]
[1752803634083,1.25893033,120410.0,120400.0,0.02035002]
[1752803634281,1.61454549,120410.0,120400.0,0.00515002]
[1752803634799,1.75546549,120410.0,120400.0,0.00515002]
[1752803634954,1.61454549,120410.0,120400.0,0.00515002]
[1752803635153,0.76231517,120410.0,120400.0,0.00515002]
[1752803635363,1.75546549,120410.0,120400.0,0.00515002]
[1752803636036,1.61454549,120410.0,120400.0,0.00515002]
[1752803636207,1.75546549,120410.0,120400.0,0.00515002]
[1752803636923,1.75542549,120410.0,120400.0,0.00515002]
[1752803638164,1.18210962,120400.0,120390.0,0.0152]
[1752803638364,0.18067979,120390.0,120380.0,0.0317]
[1752803638520,0.90559523,120390.0,120380.0,0.0317]
[1752803639144,0.91645078,120390.0,120380.0,0.0317]
[1752803639347,0.77561078,120390.0,120380.0,0.0317]
[1752803639559,0.91745078,120390.0,120380.0,0.0357]
[1752803640190,0.77661078,120390.0,120380.0,0.0357]
[1752803640395,0.91542078,120390.0,120380.0,0.04082]
[1752803641152,0.17799449,120390.0,120380.0,0.04082]
[1752803641394,0.17899449,120390.0,120380.0,0.20796055]
[1752803641562,0.30893894,120390.0,120380.0,0.04182]
[1752803642312,0.30893894,120390.0,120380.0,0.05012702]
[1752803642679,0.30893894,120390.0,120380.0,0.21626757]
[1752803643434,0.16813894,120390.0,120380.0,0.22457452]
[1752803643702,0.002,120390.0,120380.0,0.22457452]
[1752803643908,0.002,120390.0,120380.0,1.16327325]
[1752803644549,0.03522429,120390.0,120380.0,0.56457438]
[1752803644756,0.16767796,120390.0,120380.0,0.56457438]
[1752803645033,0.18473927,120390.0,120380.0,0.38182]
[1752803645275,0.32549927,120390.0,120380.0,0.54796055]
[1752803645482,0.32545927,120390.0,120380.0,0.56457438]
[1752803645921,0.32545927,120390.0,120380.0,0.58118781]
[1752803646166,0.16763796,120390.0,120380.0,0.58949435]
[1752803646385,0.15933177,120390.0,120380.0,0.58949435]
[1752803646627,0.002,120390.0,120380.0,0.58949435]
[1752803646864,0.002,120390.0,120380.0,0.67500463]
[1752803647097,0.01030578,120390.0,120380.0,1.17157979]
[1752803647314,0.01030578,120390.0,120380.0,0.67500463]
[1752803647527,0.002,120390.0,120380.0,1.25733941]
[1752803647747,0.002,120390.0,120380.0,0.67500463]
[1752803648573,0.002,120390.0,120380.0,1.17157979]
[1752803649620,0.002,120390.0,120380.0,0.67500463]
[1752803649823,0.002,120390.0,120380.0,0.76076425]
[1752803650279,0.002,120390.0,120380.0,1.25733941]
[1752803650498,0.002,120390.0,120380.0,0.76076425]
[1752803650705,0.002,120390.0,120380.0,1.17157979]
[1752803650926,0.002,120390.0,120380.0,0.67500463]
[1752803651383,0.002,120390.0,120380.0,1.17157979]
[1752803652359,0.002,120390.0,120380.0,0.67500463]
[1752803652820,0.002,120390.0,120380.0,1.17157979]
[1752803653057,0.002,120390.0,120380.0,0.67500463]
[1752803653291,0.002,120390.0,120380.0,1.17157979]
[1752803653974,0.002,120390.0,120380.0,1.20413812]
[1752803654391,0.002,120390.0,120380.0,1.17157979]
[1752803654614,0.002,120390.0,120380.0,0.67500463]
[1752803654824,0.002,120390.0,120380.0,1.17157979]
[1752803655216,0.002,120390.0,120380.0,0.67500463]
[1752803655431,0.002,120390.0,120380.0,1.17157979]
[1752803655841,0.002,120390.0,120380.0,1.31221979]
[1752803656113,0.002,120390.0,120380.0,0.81564463]
[1752803656338,0.002,120390.0,120380.0,1.31221979]
[1752803656545,0.002,120390.0,120380.0,1.17157979]
[1752803656794,0.002,120390.0,120380.0,1.31221979]
[1752803657244,0.002,120390.0,120380.0,1.35427738]
[1752803657720,0.002,120390.0,120380.0,1.31221979]
[1752803657952,0.002,120390.0,120380.0,0.81564463]
[1752803658144,0.002,120390.0,120380.0,1.31221979]
[1752803659031,0.002,120390.0,120380.0,1.17157979]
[1752803659252,0.002,120390.0,120380.0,1.31221979]
[1752803659747,0.002,120390.0,120380.0,0.76076425]
[1752803659986,0.002,120390.0,120380.0,1.17157979]
[1752803660451,0.002,120390.0,120380.0,1.31217979]
[1752803661155,0.002,120390.0,120380.0,1.80875495]
[1752803661636,0.002,120390.0,120380.0,1.66815495]
[1752803661866,0.002,120390.0,120380.0,1.80875495]
[1752803662095,0.00015002,120410.0,120400.0,1.55657937]
[1752803662320,0.00015002,120410.0,120400.0,1.78477965]
[1752803662555,0.00015002,120410.0,120400.0,1.78797965]
[1752803662779,0.00015002,120410.0,120400.0,0.65422933]
[1752803663025,0.00015002,120410.0,120400.0,1.64737965]
[1752803663260,0.00115002,120410.0,120400.0,1.82061437]
[1752803663728,0.00115002,120410.0,120400.0,1.68001437]
[1752803663963,0.00115002,120410.0,120400.0,1.82073437]
[1752803664469,0.00115002,120410.0,120400.0,1.83112334]
[1752803664696,0.00115002,120410.0,120400.0,1.83104334]
[1752803665158,0.00115002,120410.0,120400.0,1.83100334]
[1752803665805,0.00115002,120410.0,120400.0,1.83108334]
[1752803665979,0.00115002,120410.0,120400.0,1.69040334]
[1752803666141,0.00115002,120410.0,120400.0,1.83108334]
[1752803666347,0.00215002,120410.0,120400.0,1.83408334]
[1752803667619,0.00215002,120410.0,120400.0,1.83400334]
[1752803668652,0.00215002,120410.0,120400.0,1.69340334]
[1752803668984,0.00215002,120410.0,120400.0,1.83400334]
[1752803670522,0.00215002,120410.0,120400.0,0.84085302]
[1752803670709,0.00215002,120410.0,120400.0,1.83400334]
[1752803671770,0.00215002,120410.0,120400.0,0.84085302]
[1752803671981,0.00215002,120410.0,120400.0,1.83400334]
[1752803672183,0.00215002,120410.0,120400.0,1.69340334]
[1752803672393,0.00215002,120410.0,120400.0,1.83396334]
[1752803672849,0.00215002,120410.0,120400.0,1.69340334]
[1752803673029,0.00215002,120410.0,120400.0,1.83396334]
[1752803673241,0.00215002,120410.0,120400.0,1.69340334]
[1752803673783,0.00215002,120410.0,120400.0,1.83396334]
[1752803673998,0.00215002,120410.0,120400.0,1.69340334]
[1752803674176,0.00215002,120410.0,120400.0,1.83396334]
[1752803674417,0.00215002,120410.0,120400.0,0.84081302]
[1752803674628,0.00215002,120410.0,120400.0,1.83396334]
[1752803675612,0.00215002,120410.0,120400.0,1.69340334]
[1752803675826,0.02904426,120410.0,120400.0,0.0364]
[1752803676011,0.03213343,120410.0,120400.0,0.20312402]
[1752803676199,0.04043811,120410.0,120400.0,0.20312396]
[1752803676405,0.03734811,120410.0,120400.0,0.20312396]
[1752803676604,0.04565286,120410.0,120400.0,0.20312402]
[1752803677031,0.02073882,120410.0,120400.0,0.73479971]
[1752803677457,0.02904343,120410.0,120400.0,0.73479971]
[1752803677656,0.00215002,120410.0,120400.0,0.73799971]
[1752803677855,0.00215002,120410.0,120400.0,1.54640477]
[1752803678066,0.00215002,120410.0,120400.0,1.55676057]
[1752803678261,0.00215002,120410.0,120400.0,1.41620057]
[1752803678482,0.00215002,120410.0,120400.0,0.97442579]
[1752803681930,0.00215002,120410.0,120400.0,0.47785063]
[1752803682098,0.00215002,120410.0,120400.0,0.97442579]
[1752803684045,0.00215002,120410.0,120400.0,0.47785063]
[1752803684367,0.00215002,120410.0,120400.0,0.97442579]
[1752803684797,0.00215002,120410.0,120400.0,0.83386579]
[1752803685002,0.00215002,120410.0,120400.0,0.97442579]
[1752803685399,0.00215002,120410.0,120400.0,0.85240866]
[1752803685653,0.00215002,120410.0,120400.0,0.97442579]
[1752803686004,0.00215002,120410.0,120400.0,0.83386579]
[1752803686217,0.00215002,120410.0,120400.0,0.97442579]
[1752803686427,0.00215002,120410.0,120400.0,0.47785063]
[1752803686641,0.00215002,120410.0,120400.0,0.33729063]
[1752803686846,0.00215002,120410.0,120400.0,0.47785063]
[1752803687035,0.00215002,120410.0,120400.0,0.83386579]
[1752803687266,0.00215002,120410.0,120400.0,0.97442579]
[1752803687485,0.00215002,120410.0,120400.0,1.75620057]
[1752803687922,0.00215002,120410.0,120400.0,1.89676057]
[1752803688349,0.00215002,120410.0,120400.0,1.80620057]
[1752803688493,0.00215002,120410.0,120400.0,1.94676057]
[1752803689295,0.00215002,120410.0,120400.0,1.99676057]
[1752803689677,0.00215002,120410.0,120400.0,1.86055715]
[1752803689884,0.00115002,120410.0,120400.0,2.00011715]
[1752803690115,0.00215002,120410.0,120400.0,1.75820057]
[1752803690323,0.00115002,120410.0,120400.0,1.89576057]
[1752803690752,0.00215002,120410.0,120400.0,1.75920057]
[1752803691002,0.00215002,120410.0,120400.0,1.89972057]
[1752803692031,0.00215002,120410.0,120400.0,0.76605025]
[1752803692193,0.00215002,120410.0,120400.0,1.89972057]
[1752803692602,0.00215002,120410.0,120400.0,0.90657025]
[1752803692815,0.00215002,120410.0,120400.0,1.89972057]
[1752803693017,0.00215002,120410.0,120400.0,1.75920057]
[1752803693221,0.01045442,120410.0,120400.0,0.68029063]
[1752803693614,0.01875896,120410.0,120400.0,0.96702999]
[1752803693827,0.01252442,120410.0,120400.0,1.16121999]
[1752803694018,0.01252435,120410.0,120400.0,0.96173999]
[1752803694152,0.02913364,120410.0,120400.0,0.29184483]
[1752803694387,0.22219861,120410.0,120400.0,0.007]
[1752803696383,0.22119861,120410.0,120400.0,0.003]
[1752803696844,0.22219861,120410.0,120400.0,0.005]
[1752803697016,0.2327657,120410.0,120400.0,0.005]
[1752803697503,0.2317657,120410.0,120400.0,0.003]